Cogmind - Beta 16 @@@ ROGUE MODE // 2025.10.25 @ 17:23:24 Player: JuustuToug Result: Destroyed by Enhanced Hunter with Hypervelocity Linear Accelerator Performance ------------- Evolutions (9) 4500 Regions Visited (23) 4600 Robots Destroyed (91) 455 Value Destroyed (2719) 2719 Prototype IDs (89) 1780 Alien Tech Used (8) 1600 Bonus (8269) 8269 TOTAL SCORE: 23923 Bonus ------- Follower Combat Kills 369 Registered with UFD 300 Met Optimus in HQ 500 Met Zhirov 300 Hacked Protovariant 1000 Scanned by Researcher 500 Met MAIN.C 5000 Met Architect 300 Cogmind --------- Core Integrity 0/1600 Matter 50/300 Energy 14/100 System Corruption 4% Temperature Cool (0) Movement Core (50) Location -1/Access_0 Parts ------- > --- POWER (2) -------- (None) > --- PROPULSION (8) --- (None) > --- UTILITY (13) ----- Advanced Signal Interpreter Graphene Brace Advanced System Shield > --- WEAPON (2) ------- (None) > --- INVENTORY (5) ---- Advanced Quantum Shading Machine Advanced Sensor Array Centrium Medium Armor Plating Tactical Quantum Warhead Peak State ------------ > --- POWER ------------ Micro Antimatter Reactor Zero-point Reactor > --- PROPULSION ------- Electron Diverter Improved Diametric Drive Improved Diametric Drive Improved Diametric Drive Improved Diametric Drive Improved Diametric Drive Experimental Q-thruster Experimental Q-thruster > --- UTILITY ---------- Experimental Power Amplifier Medium Storage Unit Advanced Gravity Neutralizer Long-range Sensor Array Advanced Signal Interpreter Advanced Reaction Control System Layered Heavy Armor Plating Graphene Brace Experimental Focal Shield Improved Hacking Suite Advanced System Shield Experimental System Purifier > --- WEAPON ----------- Heavy Quantum Rifle Lance > --- INVENTORY -------- Light Angular Momentum Engine Zero-point Reactor Electron Diverter Experimental Q-thruster Experimental Q-thruster Advanced Sensor Array ECM Suite Layered Heavy Armor Plating Transdimensional Reconstructor [Rating: 204] Favorites ----------- Power Ion Engine Engine Ion Engine Power Core Micro Fission Core Reactor Micro Antimatter Reactor Propulsion Cooled VTOL Module Treads Light Treads Leg Aluminum Leg Hover Unit Cooled Gravmag System Flight Unit Cooled VTOL Module Utility Medium Storage Unit Device Experimental Sensor Array Storage Medium Storage Unit Processor Advanced Signal Interpreter Hackware Improved Hacking Suite Protection Improved Light Armor Plating Weapon Katana Energy Gun Particle Gun Energy Cannon Beam Cannon Ballistic Gun Minigun Ballistic Cannon Graviton Cannon Launcher Rocket Launcher Special Weapon Junk Cannon Impact Weapon Core Stripper Slashing Weapon Katana Piercing Weapon Lance Build | -11 -10 -10 -10 -9 -8 -7 -7 -7 -7 -5 -5 -5 -5 -4 -4 -3 -3 -2 -2 -2 -1 -1 -1 ------- Run | Yrd Mat Min Exi Min Mat Fac Sto Rec Scr Fac Upp Upp Zhi Pro Fac Res Tes Res Qua Frg Acc Com Ac0 Slots Evolved 18 | . . . . . 4 2 . . . 4 . . . . 2 2 . 2 . . 2 . . Power 1 | . . . . . . . . . . . . . . . 1 . . . . . . . . Propulsion 6 | . . . . . 1 2 . . . 1 . . . . . . . 1 . . 1 . . Utility 11 | . . . . . 3 . . . . 3 . . . . 1 2 . 1 . . 1 . . Weapon . | . . . . . . . . . . . . . . . . . . . . . . . . Parts Attached 189 | 8 9 2 . . 35 19 14 1 4 11 . 2 5 . 8 10 1 4 7 . 16 16 17 Power 26 | 2 2 . . . 4 3 . . . 2 . 1 1 . 1 2 . 1 . . 2 2 3 Engine 12 | 2 2 . . . 3 2 . . . 2 . . . . . . . . . . . . 1 Core 4 | . . . . . 1 1 . . . . . 1 . . 1 . . . . . . . . Reactor 10 | . . . . . . . . . . . . . 1 . . 2 . 1 . . 2 2 2 Propulsion 59 | 2 1 . . . 12 6 11 . . 2 . . 1 . 3 3 1 . . . 6 5 6 Treads 10 | 2 1 . . . 7 . . . . . . . . . . . . . . . . . . Leg 5 | . . . . . 5 . . . . . . . . . . . . . . . . . . Wheel . | . . . . . . . . . . . . . . . . . . . . . . . . Hover 1 | . . . . . . . . . . . . . 1 . . . . . . . . . . Flight 43 | . . . . . . 6 11 . . 2 . . . . 3 3 1 . . . 6 5 6 Utility 75 | 1 2 1 . . 12 7 1 . 3 6 . 1 3 . 4 5 . 3 4 . 8 6 8 Device 35 | . . 1 . . 4 3 . . 3 1 . . 2 . . 2 . . 4 . 5 5 5 Storage 5 | 1 1 . . . 1 1 . . . . . . . . 1 . . . . . . . . Processor 5 | . . . . . 1 1 . . . 1 . . . . 1 . . . . . 1 . . Hackware 11 | . . . . . 1 1 1 . . 3 . 1 1 . 1 1 . 1 . . . . . Protection 19 | . 1 . . . 5 1 . . . 1 . . . . 1 2 . 2 . . 2 1 3 Artifact . | . . . . . . . . . . . . . . . . . . . . . . . . Weapon 29 | 3 4 1 . . 7 3 2 1 1 1 . . . . . . . . 3 . . 3 . Energy Gun 5 | 2 . . . . 2 . . . . . . . . . . . . . . . . 1 . Energy Cannon 5 | . 2 . . . 1 . 1 . . . . . . . . . . . 1 . . . . Ballistic Gun 7 | 1 2 . . . 4 . . . . . . . . . . . . . . . . . . Ballistic Cannon 1 | . . . . . . . . . . . . . . . . . . . . . . 1 . Launcher 3 | . . 1 . . . . 1 . . 1 . . . . . . . . . . . . . Special Weapon 1 | . . . . . . . . . 1 . . . . . . . . . . . . . . Impact Weapon 1 | . . . . . . . . . . . . . . . . . . . 1 . . . . Slashing Weapon 5 | . . . . . . 3 . 1 . . . . . . . . . . 1 . . . . Piercing Weapon 1 | . . . . . . . . . . . . . . . . . . . . . . 1 . Special Melee Weapon . | . . . . . . . . . . . . . . . . . . . . . . . . Unidentified Prototypes 40 | . . . . . 2 1 3 . 1 2 . . 4 . 1 2 . . 5 . 2 9 8 Parts Lost 61 | . 1 . . . 10 . . . . 1 . . . . 3 . 1 . 4 1 5 2 33 Power 8 | . . . . . 2 . . . . . . . . . . . . . 1 . 1 . 4 Propulsion 23 | . 1 . . . 3 . . . . . . . . . 2 . 1 . 1 . 2 . 13 Utility 25 | . . . . . 2 . . . . 1 . . . . 1 . . . 2 1 2 1 15 Weapon 5 | . . . . . 3 . . . . . . . . . . . . . . . . 1 1 Highest Loss Streak 19 | . 1 . . . 4 . . . . 1 . . . . 2 . 1 . 1 1 3 1 19 To Critical Strikes . | . . . . . . . . . . . . . . . . . . . . . . . . Average Backups 14 | 3 18 20 20 20 21 10 10 10 9 8 10 10 10 10 9 9 9 9 9 8 9 9 8 Power 1 | . 1 2 2 2 1 1 1 1 . 1 1 1 1 1 1 1 1 1 1 2 1 1 . Propulsion 4 | 1 8 8 8 8 8 1 1 1 1 . 1 1 1 1 1 1 1 1 . . 1 2 1 Utility 4 | . 3 5 5 5 6 6 6 6 6 5 6 6 6 6 5 5 5 4 3 1 2 3 4 Weapon 3 | . 4 5 5 5 5 2 1 2 2 2 2 2 1 1 1 1 1 1 1 2 2 . 1 Tool/Special . | . . . . . . . . . . . . . . . . . . . . . . . . Unused Backups 63 | . 11 . 1 . 16 7 3 . 1 3 . . . . 4 1 1 . 3 . 3 2 7 Power 3 | . 1 . . . . 1 . . 1 . . . . . . . . . . . . . . Propulsion 20 | . 7 . . . 8 3 1 . . . . . . . . . . . . . 1 . . Utility 27 | . 2 . 1 . 3 1 2 . . 1 . . . . 4 1 1 . 3 . 2 2 4 Weapon 13 | . 1 . . . 5 2 . . . 2 . . . . . . . . . . . . 3 Tool/Special . | . . . . . . . . . . . . . . . . . . . . . . . . Average Slot Usage (%) 96 | . 97 100 100 100 97 91 100 100 99 97 100 100 94 100 97 98 100 98 97 93 90 89 72 Engine 6 | . 14 14 14 14 6 5 7 7 7 5 5 2 . . . . . . . . . . . Core 1 | . . . . . 1 1 . . . . . 2 1 . 7 5 4 4 2 . . . . Reactor 1 | . . . . . . . . . . . . . 1 5 1 3 4 4 5 8 8 8 5 Treads 11 | . 28 28 28 28 21 . . . . . . . . . . . . . . . . . . Flight 18 | . . . . . . 36 38 38 38 34 35 35 34 35 30 27 28 29 29 29 29 30 24 Device 9 | . . 5 14 14 10 12 7 7 7 5 5 5 5 5 9 13 14 13 13 17 20 24 23 Storage 8 | . 14 14 14 14 9 7 7 7 7 5 5 5 5 5 5 4 4 4 4 4 4 4 3 Processor 3 | . . . . . 2 7 7 7 7 5 5 5 5 5 5 4 4 4 4 4 5 4 4 Hackware 10 | . . . . . 2 1 14 15 15 22 23 23 23 23 21 22 23 24 24 19 12 9 5 Protection 7 | . 11 8 . . 19 7 . . . 4 5 5 2 5 5 4 4 5 4 4 5 4 1 Energy Cannon 3 | . 11 14 14 14 . . . . . . . . . . . . . . . . . . . Ballistic Gun 6 | . 14 14 14 14 15 . . . . . . . . . . . . . . . . . . Slashing Weapon 4 | . . . . . . 7 14 15 14 10 11 11 11 11 10 9 9 8 6 4 4 1 . Peak Build Rating 204 | 6 9 10 9 9 31 40 52 50 56 80 83 81 89 87 96 116 114 125 149 148 191 204 188 Average Rating 62 | 4 8 9 9 9 27 34 47 49 52 72 80 80 79 87 92 110 112 122 130 145 172 183 148 On Entrance 73 | . 6 9 9 9 9 31 37 50 50 56 80 80 81 87 87 91 113 113 125 148 145 174 166 Avg Prop Armor Cover (%) 2 | . . . . . 4 3 . 14 . 1 . . . . . . . . . . 1 . 2 Naked Turns . | . . . . . . . . . . . . . . . . . . . . . . . . Heaviest Build 108 | 13 51 50 50 50 108 28 25 20 20 28 28 28 31 31 32 42 38 45 55 52 67 84 62 Greatest Support 76 | 40 40 40 40 40 60 32 35 25 25 38 32 40 32 32 42 50 50 54 66 66 76 73 70 Greatest Overweight (x) 8 | . 1 1 1 1 2 . . 6 . . . . 8 . 1 1 . . . . . 1 1 Average Overweight (x) . | . . 1 1 1 . . . . . . . . . . . . . . . . . . . Largest Inventory Capacity 25 | 8 20 20 20 20 25 25 10 10 10 10 10 10 10 10 10 10 10 10 10 10 10 10 10 Average Capacity 14 | 7 18 20 20 20 22 10 10 10 10 10 10 10 10 10 10 10 10 10 10 10 10 10 9 Most Carried 25 | 6 20 20 20 20 25 25 10 10 10 10 10 10 10 10 10 10 10 10 10 10 10 10 10 Average Carried 14 | 3 18 20 20 20 21 10 9 10 9 8 10 10 9 10 9 9 9 9 9 8 9 9 8 Final Capacity 25 | 8 20 20 20 20 25 10 10 10 10 10 10 10 10 10 10 10 10 10 10 10 10 10 5 Final Carried 25 | 5 20 20 20 20 25 10 10 10 10 10 10 10 10 10 10 10 10 10 8 10 10 10 4 Class Distribution -------------------- 29% | Mutant 26% | Hacker-Sprinter 15% | Scavenger-Mutant 14% | Wizard-Ninja 3% | Hacker-Scout Dominant Class ---------------- Mutant | -10/Materials Mutant | -10/Mines Mutant | -10/Exiles Mutant | -9/Mines Scavenger-Mutant | -8/Materials Scout | -7/Factory Hacker-Sprinter | -7/Storage Hacker-Sprinter | -7/Recycling Hacker-Sprinter | -7/Scraptown Hacker-Sprinter | -5/Factory Hacker-Sprinter | -5/Upper Caves Hacker-Sprinter | -5/Upper Caves Hacker-Sprinter | -5/Zhirov Hacker-Sprinter | -4/Proximity Caves Hacker-Scout | -4/Factory Wizard-Ninja | -3/Research Wizard-Ninja | -3/Testing Wizard-Ninja | -2/Research Wizard-Ninja | -2/Quarantine Wizard-Ninja | -2/Protoforge Hacker-Sprinter | -1/Access Hacker-Mutant | -1/Command Sprinter | -1/Access_0 Resources | -11 -10 -10 -10 -9 -8 -7 -7 -7 -7 -5 -5 -5 -5 -4 -4 -3 -3 -2 -2 -2 -1 -1 -1 ----------- Run | Yrd Mat Min Exi Min Mat Fac Sto Rec Scr Fac Upp Upp Zhi Pro Fac Res Tes Res Qua Frg Acc Com Ac0 Matter Collected 3261 | 228 317 70 . . 833 260 160 20 52 192 125 10 . 100 51 189 . 75 134 . 270 70 105 Remotely . | . . . . . . . . . . . . . . . . . . . . . . . . Salvage Created 3806 | . 1100 86 . . 1390 41 78 . . 235 174 . . 49 15 250 . 75 37 11 195 70 . Parts 193 | . 60 11 . . 69 8 2 . . 9 5 . . 1 3 7 . 1 4 1 8 4 . Haulers Intercepted 6 | . 2 . . . 3 . 1 . . . . . . . . . . . . . . . . Recyclers Shooed 4 | . 3 . . . 1 . . . . . . . . . . . . . . . . . . Parts Field Recycled . | . . . . . . . . . . . . . . . . . . . . . . . . Retrieved Matter . | . . . . . . . . . . . . . . . . . . . . . . . . Parts Self-Destructed 1 | . . . . . . . . . . . 1 . . . . . . . . . . . . Prevented . | . . . . . . . . . . . . . . . . . . . . . . . . Parts Restored . | . . . . . . . . . . . . . . . . . . . . . . . . Kills | -11 -10 -10 -10 -9 -8 -7 -7 -7 -7 -5 -5 -5 -5 -4 -4 -3 -3 -2 -2 -2 -1 -1 -1 ------- Run | Yrd Mat Min Exi Min Mat Fac Sto Rec Scr Fac Upp Upp Zhi Pro Fac Res Tes Res Qua Frg Acc Com Ac0 Combat Hostiles Destroyed 50 | . 15 3 . . 23 . . . . 6 . . . . . . . . . 1 2 . . Melee 4 | . . . . . . . . . . 1 . . . . . . . . . 1 2 . . Guns 20 | . 3 . . . 17 . . . . . . . . . . . . . . . . . . Cannons 15 | . 12 . . . 3 . . . . . . . . . . . . . . . . . . AOE 11 | . . 3 . . 3 . . . . 5 . . . . . . . . . . . . . Classes Destroyed 15 | . 8 . . . 5 . . . . . . . . 1 . . . . . 1 . . . Worker 2 | . . . . . 1 . . . . . . . . . . . . . . . 1 . . Builder 3 | . 2 . . . 1 . . . . . . . . . . . . . . . . . . Tunneler 5 | . 1 3 . . 1 . . . . . . . . . . . . . . . . . . Hauler 6 | . 2 . . . 3 . 1 . . . . . . . . . . . . . . . . Recycler 10 | . 4 . . . 2 . . . . 1 . . . . . 2 . . . . 1 . . Operator 10 | . 3 . . . 1 2 . . . . . . . . 1 . . . 1 . 1 1 . Drone 3 | . . . . . . . . . . . . . . . . . . . . 1 2 . . Watcher 8 | . 3 . . . . . 1 . . . . . . . . . . 2 . . . 2 . Swarmer 13 | . 3 3 . . 1 . . . . 6 . . . . . . . . . . . . . Grunt 25 | . 12 . . . 13 . . . . . . . . . . . . . . . . . . Brawler 2 | . . . . . 2 . . . . . . . . . . . . . . . . . . Duelist 2 | . . . . . 2 . . . . . . . . . . . . . . . . . . Protector 1 | . . . . . 1 . . . . . . . . . . . . . . . . . . Sentry 4 | . . . . . 4 . . . . . . . . . . . . . . . . . . Decomposer 4 | . . . . . . . . . . . 4 . . . . . . . . . . . . Samaritan 1 | . . . . . . . . . . . . . . 1 . . . . . . . . . Best Kill Streak 13 | . 4 3 . . 13 1 1 . . 5 . . . . 1 2 . 1 1 1 2 3 . Combat Bots Only 8 | . 2 3 . . 8 . . . . 5 . . . . . . . . . 1 1 . . Max Kills in Single Turn 4 | . 1 2 . . 3 1 1 . . 4 1 . . 1 1 1 . 1 1 1 1 1 . Gunslinging . | . . . . . . . . . . . . . . . . . . . . . . . . Exploded 4 | . . 2 . . 2 . . . . 4 . . . . . . . . . . . . . Melee 1 | . . . . . . . . . . 1 . . . . . . . . . 1 1 . . Uniques/NPCs Destroyed . | . . . . . . . . . . . . . . . . . . . . . . . . Combat | -11 -10 -10 -10 -9 -8 -7 -7 -7 -7 -5 -5 -5 -5 -4 -4 -3 -3 -2 -2 -2 -1 -1 -1 -------- Run | Yrd Mat Min Exi Min Mat Fac Sto Rec Scr Fac Upp Upp Zhi Pro Fac Res Tes Res Qua Frg Acc Com Ac0 Hostile Shots Fired 1013 | . 81 3 . . 135 28 27 . . 32 . . . . 24 6 17 1 18 60 115 125 341 Missed 454 | . 23 1 . . 33 18 17 . . 13 . . . . 12 2 9 . 5 30 65 65 161 Hits 559 | . 58 2 . . 102 10 10 . . 19 . . . . 12 4 8 1 13 30 50 60 180 Melee 15 | . . . . . 9 . . . . . . . . . . . . . . . . . 6 Projectile 544 | . 58 2 . . 93 10 10 . . 19 . . . . 12 4 8 1 13 30 50 60 174 AOE 2 | . . . . . . . . . . . . . . . . . . . . . 1 1 . Critical Strikes 27 | . 1 . . . 7 . . . . . . . . . 2 . 1 . 2 . . 5 9 Actively Blocked 14 | . . . . . . . . . . . . . . . . . . . . . . 5 9 Damage Taken 13148 | . 736 36 . . 1863 104 97 . . 256 . . . . 322 83 131 25 497 515 1700 1793 4990 Core 2358 | . 182 . . . 232 12 52 . . 61 . . . . 76 22 . . 68 . 265 103 1285 Absorbed by Shields 54 | . . . . . . . . . . . . . . . . . . . . . . 54 . Redirected to Shielding 3 | . 3 . . . . . . . . . . . . . . . . . . . . . . Regen/Repaired (Parts) 1322 | . . . . . 115 . . . . 24 . . . . 25 . 47 56 38 383 537 97 . Core Remaining (%) 81 | 100 . . . 27 57 . . . 90 . . . . 93 93 . 98 . . 95 . . . Volleys Fired 202 | . 90 20 . . 86 . . . . 4 1 . . . . . . . . . . 1 . Largest 2 | . 2 2 . . 2 . . . . 1 1 . . . . . . . . . . 1 . Hottest 90 | . 80 80 . . 90 . . . . 33 46 . . . . . . . . . . 46 . Shots Fired 390 | . 179 38 . . 167 . . . . 4 1 . . . . . . . . . . 1 . Gun 250 | . 97 18 . . 135 . . . . . . . . . . . . . . . . . . Cannon 128 | . 82 18 . . 28 . . . . . . . . . . . . . . . . . . Launcher 12 | . . 2 . . 4 . . . . 4 1 . . . . . . . . . . 1 . Special . | . . . . . . . . . . . . . . . . . . . . . . . . Kinetic 219 | . 90 18 . . 111 . . . . . . . . . . . . . . . . . . Thermal 159 | . 89 18 . . 52 . . . . . . . . . . . . . . . . . . Explosive 12 | . . 2 . . 4 . . . . 4 1 . . . . . . . . . . 1 . Electromagnetic . | . . . . . . . . . . . . . . . . . . . . . . . . Robot Hit Streak 25 | . 12 7 . . 22 . . . . 25 . . . . . . . . . . . . . Robot Miss Streak 8 | . 8 3 . . 3 . . . . . . . . . . . . . . . . . . Penetration Max . | . . . . . . . . . . . . . . . . . . . . . . . . Secondary Targets . | . . . . . . . . . . . . . . . . . . . . . . . . Shots Hit Robots 297 | . 108 20 . . 112 2 5 . . 8 7 . . 1 3 6 . 11 1 1 5 4 3 Core Hits 150 | . 46 8 . . 63 2 3 . . 9 4 . . 1 1 2 . 4 1 . 2 2 2 Critical Kills 2 | . 1 . . . 1 . . . . . . . . . . . . . . . . . . Critical Parts Destroyed . | . . . . . . . . . . . . . . . . . . . . . . . . Critical Strikes 8 | . 1 . . . 4 . 1 . . . . . . . . . . 2 . . . . . Burn 3 | . . . . . 3 . . . . . . . . . . . . . . . . . . Destroy 2 | . 1 . . . 1 . . . . . . . . . . . . . . . . . . Sever 3 | . . . . . . . 1 . . . . . . . . . . 2 . . . . . Melee Attacks 315 | . . . . . . 37 19 1 . 62 9 . . 1 31 14 9 20 29 23 38 10 12 Impact . | . . . . . . . . . . . . . . . . . . . . . . . . Slashing 299 | . . . . . . 37 19 1 . 62 9 . . 1 31 14 9 20 29 23 38 6 . Piercing 16 | . . . . . . . . . . . . . . . . . . . . . . 4 12 Sneak Attacks 20 | . . . . . . 2 1 . . 1 4 . . 1 1 4 . . 1 1 2 2 . Combat Hostiles 1 | . . . . . . . . . . . . . . . . . . . . 1 . . . Follow-up Attacks 6 | . . . . . . . 1 . . . . . . . . 2 . 3 . . . . . Damage Inflicted 8539 | . 1573 444 . . 2212 215 231 . . 718 465 . . 64 163 335 . 430 95 130 571 801 92 Guns 1928 | . 514 63 . . 1351 . . . . . . . . . . . . . . . . . . Cannons 1577 | . 1034 210 . . 333 . . . . . . . . . . . . . . . . . . Explosions 1266 | . . 167 . . 522 . . . . 471 . . . . . . . . . . . 106 . Melee 3710 | . . . . . . 215 231 . . 247 465 . . 64 163 335 . 430 95 130 571 672 92 Ramming 58 | . 25 4 . . 6 . . . . . . . . . . . . . . . . 23 . Kinetic 1605 | . 456 63 . . 1086 . . . . . . . . . . . . . . . . . . Thermal 1900 | . 1092 210 . . 598 . . . . . . . . . . . . . . . . . . Explosive 1266 | . . 167 . . 522 . . . . 471 . . . . . . . . . . . 106 . Electromagnetic . | . . . . . . . . . . . . . . . . . . . . . . . . Impact . | . . . . . . . . . . . . . . . . . . . . . . . . Slashing 3618 | . . . . . . 215 231 . . 247 465 . . 64 163 335 . 430 95 130 571 672 . Piercing 92 | . . . . . . . . . . . . . . . . . . . . . . . 92 Highest Corruption 25 | . . . . . 2 . . . . . . . . . 1 . . . 2 . 12 25 3 Average Corruption 5 | . . . . . 2 . . . . . . . . . 1 . . . 1 . 11 13 1 Corruption Purged 28 | . . . . . . . . . . . . . . . . . . . 2 . . 25 1 Corruption Blocked . | . . . . . . . . . . . . . . . . . . . . . . . . Effects 84 | . . . . . 35 . . . . . . . . . . . . . . . 27 22 . Message Errors 17 | . . . . . 7 . . . . . . . . . . . . . . . 5 5 . Matter Fused 13 | . . . . . 6 . . . . . . . . . . . . . . . 6 1 . Heat Flow Errors 11 | . . . . . 4 . . . . . . . . . . . . . . . 5 2 . Energy Discharges 14 | . . . . . 7 . . . . . . . . . . . . . . . 4 3 . Parts Fused 3 | . . . . . 2 . . . . . . . . . . . . . . . 1 . . Data Loss (minor) 8 | . . . . . 4 . . . . . . . . . . . . . . . 3 1 . Data Loss (major) 5 | . . . . . 2 . . . . . . . . . . . . . . . 1 2 . Misfires 1 | . . . . . 1 . . . . . . . . . . . . . . . . . . Alerts 3 | . . . . . 2 . . . . . . . . . . . . . . . 1 . . Misdirections 9 | . . . . . . . . . . . . . . . . . . . . . 1 8 . Overload Shots . | . . . . . . . . . . . . . . . . . . . . . . . . Overflow Damage 1172 | . 6 5 . . . . . . . 82 126 . . . 7 98 . 62 . 100 245 441 . Projectiles 6 | . 6 . . . . . . . . . . . . . . . . . . . . . . Explosions 85 | . . 5 . . . . . . . 75 . . . . . . . . . . . 5 . Melee 1081 | . . . . . . . . . . 7 126 . . . 7 98 . 62 . 100 245 436 . Knockbacks . | . . . . . . . . . . . . . . . . . . . . . . . . Impact . | . . . . . . . . . . . . . . . . . . . . . . . . Kinetic . | . . . . . . . . . . . . . . . . . . . . . . . . Secondary . | . . . . . . . . . . . . . . . . . . . . . . . . Self-Inflicted Damage 43 | . . 20 . . . . . . . . . . . . . . . . . . . 23 . Shots 1 | . . 1 . . . . . . . . . . . . . . . . . . . . . Rammed 6 | . 4 1 . . 1 . . . . . . . . . . . . . . . . . . Targets Rammed 6 | . 4 1 . . 1 . . . . . . . . . . . . . . . . . . Kicked . | . . . . . . . . . . . . . . . . . . . . . . . . Crushed . | . . . . . . . . . . . . . . . . . . . . . . . . Highest Temperature 389 | . 332 140 . . 249 69 107 2 . 247 58 176 47 . 255 297 263 84 323 189 382 389 12 Average Temperature 77 | . 71 50 . . 56 19 18 2 . 34 19 46 25 . 106 109 136 14 106 69 101 182 12 Received Heat Transfer 1897 | . 384 . . . 855 45 39 . . 9 . . . . 36 . 67 . 18 90 18 45 291 Effects 10 | . . . . . 2 . . . . 1 . . . . . . . . 2 . 1 4 . Shutdowns 2 | . . . . . . . . . . . . . . . . . . . . . 1 1 . Energy Bleed 5 | . . . . . . . . . . 1 . . . . . . . . 2 . . 2 . Interference 3 | . . . . . 2 . . . . . . . . . . . . . . . . 1 . Siege Activations . | . . . . . . . . . . . . . . . . . . . . . . . . Martial Activations . | . . . . . . . . . . . . . . . . . . . . . . . . Shielding Activations . | . . . . . . . . . . . . . . . . . . . . . . . . Robots Disrupted . | . . . . . . . . . . . . . . . . . . . . . . . . Combat Hostiles . | . . . . . . . . . . . . . . . . . . . . . . . . Robots Corrupted . | . . . . . . . . . . . . . . . . . . . . . . . . Combat Hostiles . | . . . . . . . . . . . . . . . . . . . . . . . . Parts Fried . | . . . . . . . . . . . . . . . . . . . . . . . . Impact Corruptions . | . . . . . . . . . . . . . . . . . . . . . . . . Robots Melted . | . . . . . . . . . . . . . . . . . . . . . . . . Combat Hostiles . | . . . . . . . . . . . . . . . . . . . . . . . . Parts Melted 7 | . 4 . . . 3 . . . . . . . . . . . . . . . . . . Heat Transferred 4306 | . 2308 444 . . 1554 . . . . . . . . . . . . . . . . . . Parts Sabotaged . | . . . . . . . . . . . . . . . . . . . . . . . . Parts Stolen . | . . . . . . . . . . . . . . . . . . . . . . . . Parts Stripped . | . . . . . . . . . . . . . . . . . . . . . . . . Power Chain Reactions . | . . . . . . . . . . . . . . . . . . . . . . . . Alert | -11 -10 -10 -10 -9 -8 -7 -7 -7 -7 -5 -5 -5 -5 -4 -4 -3 -3 -2 -2 -2 -1 -1 -1 ------- Run | Yrd Mat Min Exi Min Mat Fac Sto Rec Scr Fac Upp Upp Zhi Pro Fac Res Tes Res Qua Frg Acc Com Ac0 Maximum Alert Level 1 | . . . . . 1 . 1 . . 1 . . . . . . . . . . . 1 . Low Security (%) 89 | 100 100 100 . 100 92 100 36 100 . 68 . . . . 100 100 100 100 100 100 100 1 . Level 1 10 | . . . . . 7 . 63 . . 31 . . . . . . . . . . . 98 . Level 2 . | . . . . . . . . . . . . . . . . . . . . . . . . Level 3 . | . . . . . . . . . . . . . . . . . . . . . . . . Level 4 . | . . . . . . . . . . . . . . . . . . . . . . . . Level 5 . | . . . . . . . . . . . . . . . . . . . . . . . . High Security . | . . . . . . . . . . . . . . . . . . . . . . . . Max Security . | . . . . . . . . . . . . . . . . . . . . . . . . Peak Influence 355 | . 85 81 . . 297 110 355 109 . 329 . . . . 114 26 28 19 34 126 180 278 . Initial 76 | . . 7 . . . . 45 55 . . . . . . . 24 . 2 . 16 64 76 . Average 45 | . 31 15 . . 37 51 231 34 . 97 . . . . 39 2 5 2 8 47 58 252 . Influence Increases 5080 | . 583 106 . . 846 275 610 203 . 558 5 . . . 259 114 84 35 257 318 399 308 120 Destroy 0b10 Robot/C 1300 | . 300 60 . . 520 . 220 40 . 120 . . . . . . . . . . 40 . . Destroy 0b10 Robot/NC 245 | . 75 15 . . 50 5 10 15 . 5 5 . . . 5 10 . 10 5 5 15 15 . Destroy Leader 318 | . 100 10 . . 116 . 74 . . 10 . . . . . . . 4 . . . 4 . Allied During Kill 111 | . . . . . 10 . 94 7 . . . . . . . . . . . . . . . Trap Triggered on 0b10 80 | . . . . . . . . . . . . . . . . . . . . 80 . . . Successful Hack 653 | . 15 . . . 59 46 86 34 . 35 . . . . 58 62 42 12 9 80 107 8 . Select Force Hacks 90 | . . . . . . . . 90 . . . . . . . . . . . . . . . Disable Machine 390 | . . . . . 15 30 30 . . 75 . . . . 15 . . . 120 15 15 15 60 Anti-Garrison Action 50 | . . . . . . . . . . . . . . . . . . . . . . 50 . Destroy Structure 628 | . 3 21 . . 31 29 6 2 . 148 . . . . 46 12 12 9 33 48 72 156 . Partial Spotted 585 | . 15 . . . . 30 15 . . 60 . . . . 60 30 30 . 90 90 60 45 60 Lose Combat Pursuer 630 | . 75 . . . 45 135 75 15 . 105 . . . . 75 . . . . . 90 15 . Influence Decreases 5080 | . 564 125 . . 846 175 567 346 . 558 5 . . . 211 162 79 40 227 239 388 104 444 Entered New Map 609 | . . 12 . . . . 55 88 . . . . . . . 24 . 3 . 14 45 44 324 Time Decay 2987 | . 554 113 . . 453 165 302 130 . 237 5 . . . 171 127 62 37 178 152 261 40 . Lost Part 341 | . 10 . . . 90 . . . . 10 . . . . 30 . 7 . 18 10 26 20 120 Lost Ally 366 | . . . . . 20 10 210 59 . 7 . . . . 10 . 10 . 10 20 10 . . Purge Threat 777 | . . . . . 283 . . 69 . 304 . . . . . 11 . . 21 43 46 . . Squads Dispatched 58 | . 5 . . . 6 6 2 . . 9 . . . . 8 3 5 2 1 3 6 2 . Investigation 18 | . 2 . . . . 2 . . . 6 . . . . 5 1 . 1 . . 1 . . Extermination 17 | . . . . . . 4 . . . 2 . . . . 3 2 . 1 . 1 3 1 . Reinforcement 17 | . 3 . . . 2 . 2 . . 1 . . . . . . 3 . 1 2 2 1 . Assault 4 | . . . . . 2 . . . . . . . . . . . 2 . . . . . . Garrison 2 | . . . . . 2 . . . . . . . . . . . . . . . . . . Intercept . | . . . . . . . . . . . . . . . . . . . . . . . . Searches Triggered . | . . . . . . . . . . . . . . . . . . . . . . . . Unchained Authorized 3 | . . . . . . . . . . . . . . . . 1 . 1 . . 1 . . Construction Impeded . | . . . . . . . . . . . . . . . . . . . . . . . . Haulers Reinforced 1 | . . . . . . . 1 . . . . . . . . . . . . . . . . Active Scanning Responses . | . . . . . . . . . . . . . . . . . . . . . . . . Cargo Convoy Interrupts . | . . . . . . . . . . . . . . . . . . . . . . . . Stealth | -11 -10 -10 -10 -9 -8 -7 -7 -7 -7 -5 -5 -5 -5 -4 -4 -3 -3 -2 -2 -2 -1 -1 -1 --------- Run | Yrd Mat Min Exi Min Mat Fac Sto Rec Scr Fac Upp Upp Zhi Pro Fac Res Tes Res Qua Frg Acc Com Ac0 Distress Signals 24 | . 3 . . . 2 2 3 . . . . . . . 1 1 1 1 1 5 2 2 . Communications Jammed . | . . . . . . . . . . . . . . . . . . . . . . . . Distress Signals . | . . . . . . . . . . . . . . . . . . . . . . . . Times Spotted 329 | . 32 3 . . 35 14 11 3 . 18 . . . . 15 13 18 8 17 46 37 32 27 Peak Tracking Total 24 | . 3 3 . . 8 5 6 1 . 5 . . . . 7 10 13 5 6 14 10 17 24 Tactical Retreats 66 | . 5 . . . 1 4 3 1 . 4 . . . . 3 2 5 1 7 9 12 6 3 ECM-based Alert Blocks 146 | . . . . . . . . . . . . . . . . 16 20 4 15 33 38 20 . Traps | -11 -10 -10 -10 -9 -8 -7 -7 -7 -7 -5 -5 -5 -5 -4 -4 -3 -3 -2 -2 -2 -1 -1 -1 ------- Run | Yrd Mat Min Exi Min Mat Fac Sto Rec Scr Fac Upp Upp Zhi Pro Fac Res Tes Res Qua Frg Acc Com Ac0 Traps Triggered 8 | . 3 . . . 1 . . . . 1 . . . . . . 1 . 1 . . 1 . Indirectly . | . . . . . . . . . . . . . . . . . . . . . . . . Trap Hack Attempts . | . . . . . . . . . . . . . . . . . . . . . . . . Triggered . | . . . . . . . . . . . . . . . . . . . . . . . . Disarmed 2 | . . . . . . . . . . . . . . . . . . . . . 2 . . Reprogrammed 16 | . . . . . . . . . . . . . . . . . . . . 16 . . . Reused 8 | . . . . . . . . . . . . . . . . . . . . 8 . . . Traps Extracted . | . . . . . . . . . . . . . . . . . . . . . . . . Installed . | . . . . . . . . . . . . . . . . . . . . . . . . Triggered 8 | . . . . . . . . . . . . . . . . . . . . 8 . . . Machines | -11 -10 -10 -10 -9 -8 -7 -7 -7 -7 -5 -5 -5 -5 -4 -4 -3 -3 -2 -2 -2 -1 -1 -1 ---------- Run | Yrd Mat Min Exi Min Mat Fac Sto Rec Scr Fac Upp Upp Zhi Pro Fac Res Tes Res Qua Frg Acc Com Ac0 Machines Disabled 29 | . 1 . . . 1 2 2 . . 5 . . . . 1 . . . 8 1 1 3 4 Max in Single Turn 2 | . 1 . . . 1 1 1 . . 2 . . . . 1 . . . 1 1 1 2 1 Garrison Access 10 | . . . . . 1 . 1 . . . . . . . 1 3 . . 1 . 3 . . Phase Generator 1 | . . . . . . . . . . . . . . . . . . . . . . 1 . Machines Repaired . | . . . . . . . . . . . . . . . . . . . . . . . . Machines Dismantled . | . . . . . . . . . . . . . . . . . . . . . . . . Machines Sabotaged . | . . . . . . . . . . . . . . . . . . . . . . . . Overloaded Fab Kills . | . . . . . . . . . . . . . . . . . . . . . . . . Hacking | -11 -10 -10 -10 -9 -8 -7 -7 -7 -7 -5 -5 -5 -5 -4 -4 -3 -3 -2 -2 -2 -1 -1 -1 --------- Run | Yrd Mat Min Exi Min Mat Fac Sto Rec Scr Fac Upp Upp Zhi Pro Fac Res Tes Res Qua Frg Acc Com Ac0 Machines Accessed 183 | . 5 . . . 14 16 12 10 8 19 . 2 4 . 16 15 8 8 9 12 18 6 1 Terminals 117 | . 5 . . . 10 13 11 6 . 9 . 1 . . 8 9 5 5 6 11 12 6 . Fabricators 4 | . . . . . . . . . . 2 . . . . 1 1 . . . . . . . Repair Stations 11 | . . . . . 2 1 . . . 1 . . . . 2 . 1 1 1 1 1 . . Recycling Units 18 | . . . . . 1 2 . 4 . 5 . . . . 4 . . 1 . . 1 . . Scanalyzers 8 | . . . . . 1 . . . . 1 . . . . . 2 2 . 1 . 1 . . Garrison Access 11 | . . . . . . . 1 . . 1 . . . . 1 3 . 1 1 . 3 . . Total Hacks 641 | . 14 . . . 50 36 29 36 33 85 . 2 17 . 48 62 28 25 39 74 48 13 2 Successful 423 | . 6 . . . 32 18 20 20 33 53 . 2 17 . 23 41 19 14 32 57 30 4 2 Failed 216 | . 8 . . . 17 18 9 16 . 31 . . . . 25 21 9 11 7 17 18 9 . Catastrophic 22 | . 2 . . . 2 6 . . . 3 . . . . 3 . . . . 2 1 3 . Database Lockouts 2 | . . . . . 1 . . . . 1 . . . . . . . . . . . . . Manual 290 | . 14 . . . 37 25 18 26 . 36 . . . . 27 25 9 11 7 36 18 1 . Terminals 462 | . 14 . . . 41 32 27 30 . 54 . 1 . . 31 41 22 17 31 70 38 13 . Fabricators 12 | . . . . . . . . . . 5 . . . . 3 4 . . . . . . . Repair Stations 32 | . . . . . 4 1 . . . 2 . . . . 7 . 4 4 3 4 3 . . Recycling Units 28 | . . . . . 3 3 . 6 . 9 . . . . 5 . . 1 . . 1 . . Scanalyzers 34 | . . . . . 2 . . . . 11 . . . . . 14 2 . 3 . 2 . . Garrison Access 20 | . . . . . . . 2 . . 4 . . . . 2 3 . 3 2 . 4 . . Terminal Hacks 222 | . . . . . 10 7 9 6 33 21 . 2 17 . 10 11 10 8 21 35 16 4 2 Record 39 | . . . . . . . . . 32 . . 1 5 . . . . . 1 . . . . Part Schematic 10 | . . . . . . 2 . 1 . 1 . . 4 . . 1 . . . 1 . . . Robot Analysis 11 | . . . . . . 1 . . . 1 . . 4 . 1 . . 1 1 2 . . . Prototype ID Bank 19 | . . . . . 2 1 2 1 . 2 . . 4 . 2 1 . . . 3 1 . . Open Door 10 | . . . . . . . 4 . . . . 1 . . . . . . . . 3 2 . Level Access Points 5 | . . . . . . . . . . 1 . . . . 1 . 1 . . 2 . . . Branch Access Points 8 | . . . . . . 1 . . . 1 . . . . . 1 . 2 1 1 1 . . Emergency Access Points 2 | . . . . . 1 . . . . . . . . . . . . . 1 . . . . Machine Index 3 | . . . . . . . . . . . . . . . . . 1 1 . 1 . . . Terminal Index 15 | . . . . . 2 1 1 1 . 1 . . . . 1 2 1 1 1 1 1 1 . Fabricator Index 2 | . . . . . . . . . . . . . . . . 1 . . 1 . . . . Repair Station Index 3 | . . . . . . . . . . . . . . . 1 1 . . . 1 . . . Recycling Unit Index 1 | . . . . . . . . . . . . . . . . . . . . . 1 . . Garrison Index 2 | . . . . . . . . . . 1 . . . . . . . . 1 . . . . Alert Level 7 | . . . . . . . . . . . . . . . 1 1 . . 1 1 2 1 . Unreport Threat 13 | . . . . . 3 . . 2 . 3 . . . . . 1 . . 2 1 1 . . Locate Traps 11 | . . . . . 1 1 . . . 1 . . . . 1 . 1 . . 4 2 . . Disarm Traps 2 | . . . . . . . . . . . . . . . . . . . . . 2 . . Reprogram Traps 4 | . . . . . . . . . . . . . . . . . . . . 4 . . . Dispatch Records 3 | . . . . . . . . . . 1 . . . . . . . . 1 1 . . . Maintenance Status 1 | . . . . . . . . . . . . . . . . . . . . 1 . . . Security Status 4 | . . . . . . . . . . . . . . . . . . . 1 3 . . . Surveillance Status 2 | . . . . . . . . . . . . . . . . . . . 1 1 . . . Patrol Status 3 | . . . . . . . . . . . . . . . . . . . 2 . 1 . . Transport Status 1 | . . . . . . . . . . . . . . . . . . . . 1 . . . Investigation Status 1 | . . . . . . . . . . . . . . . . . . . 1 . . . . Extermination Status 1 | . . . . . . . . . . 1 . . . . . . . . . . . . . Recall Investigation 4 | . . . . . . . . . . 2 . . . . . . . 1 1 . . . . Recall Extermination 7 | . . . . . . . . . . 2 . . . . 2 1 . 1 . 1 . . . Recall Reinforcements 5 | . . . . . 1 . . . . 2 . . . . . . . . . 1 1 . . Recall Assault 2 | . . . . . . . . . . . . . . . . . 2 . . . . . . Hauler Manifests 2 | . . . . . . . . . . 1 . . . . . . . . . 1 . . . Registered Components 5 | . . . . . . . 1 1 . . . . . . . . 1 1 1 . . . . Registered Prototypes 1 | . . . . . . . . . . . . . . . . 1 . . . . . . . Zone Layout 8 | . . . . . . . 1 . . . . . . . . . 1 . 3 3 . . . Proto ID Catalog 1 | . . . . . . . . . 1 . . . . . . . . . . . . . . Protovariant Controls 2 | . . . . . . . . . . . . . . . . . 2 . . . . . . Gate Test 138-A 2 | . . . . . . . . . . . . . . . . . . . . . . . 2 Fabricator Hacks 6 | . . . . . . . . . . 3 . . . . 1 2 . . . . . . . Network Status 2 | . . . . . . . . . . 1 . . . . 1 . . . . . . . . Load Schematic 2 | . . . . . . . . . . 1 . . . . . 1 . . . . . . . Build 2 | . . . . . . . . . . 1 . . . . . 1 . . . . . . . Repair Station Hacks 21 | . . . . . 3 1 . . . 2 . . . . 3 . 3 2 2 4 1 . . Scan Component 13 | . . . . . 2 1 . . . 1 . . . . 2 . 2 1 1 2 1 . . Repair 8 | . . . . . 1 . . . . 1 . . . . 1 . 1 1 1 2 . . . Recycling Unit Hacks 2 | . . . . . . 1 . . . 1 . . . . . . . . . . . . . Retrieve Components 2 | . . . . . . 1 . . . 1 . . . . . . . . . . . . . Scanalyzer 28 | . . . . . 2 . . . . 10 . . . . . 12 1 . 3 . . . . Insert Component 8 | . . . . . . . . . . 3 . . . . . 3 1 . 1 . . . . Analyze 9 | . . . . . . . . . . 6 . . . . . 3 . . . . . . . Retrieve Study 11 | . . . . . 2 . . . . 1 . . . . . 6 . . 2 . . . . Garrison Access Hacks 9 | . . . . . . . 1 . . . . . . . 1 3 . . 1 . 3 . . Seal Access 9 | . . . . . . . 1 . . . . . . . 1 3 . . 1 . 3 . . Unauthorized Hacks 135 | . 6 . . . 17 9 10 14 . 16 . . . . 8 13 5 4 5 18 10 . . Terminals 117 | . 6 . . . 16 9 10 11 . 10 . . . . 3 13 4 3 5 18 9 . . Track 2 | . . . . . . . . 1 . . . . . . . . . . . 1 . . . Assimilate 16 | . . . . . 1 2 2 . . 1 . . . . 1 2 1 . 1 4 1 . . Botnet 36 | . 1 . . . 3 1 3 3 . 4 . . . . 2 5 2 3 2 5 2 . . Operators 7 | . . . . . 2 1 . 1 . . . . . . . 1 . . 1 1 . . . Skim 56 | . 5 . . . 10 5 5 6 . 5 . . . . . 5 1 . 1 7 6 . . Fabricators 2 | . . . . . . . . . . 1 . . . . 1 . . . . . . . . Report 2 | . . . . . . . . . . 1 . . . . 1 . . . . . . . . Repair Stations . | . . . . . . . . . . . . . . . . . . . . . . . . Recycling Units 15 | . . . . . 1 . . 3 . 5 . . . . 4 . . 1 . . 1 . . Reject 1 | . . . . . 1 . . . . . . . . . . . . . . . . . . Tunnel 3 | . . . . . . . . 3 . . . . . . . . . . . . . . . Fedlink 11 | . . . . . . . . . . 5 . . . . 4 . . 1 . . 1 . . Scanalyzers 1 | . . . . . . . . . . . . . . . . . 1 . . . . . . Researchers 1 | . . . . . . . . . . . . . . . . . 1 . . . . . . Garrison Access . | . . . . . . . . . . . . . . . . . . . . . . . . Data Cores Recovered 2 | . . . . . . . . . . . . . . . 1 . . . . . 1 . . Used . | . . . . . . . . . . . . . . . . . . . . . . . . Hacking Detections 131 | . 5 . . . 14 13 9 7 . 13 . . . . 12 11 7 7 7 10 11 5 . Full Trace Events 6 | . . . . . . 2 . . . 1 . . . . 1 1 . . . . . 1 . Feedback Events . | . . . . . . . . . . . . . . . . . . . . . . . . Feedback Blocked . | . . . . . . . . . . . . . . . . . . . . . . . . Robot Schematics Acquired . | . . . . . . . . . . . . . . . . . . . . . . . . Robots Built . | . . . . . . . . . . . . . . . . . . . . . . . . Authchips . | . . . . . . . . . . . . . . . . . . . . . . . . Time . | . . . . . . . . . . . . . . . . . . . . . . . . Total Robot Build Rating . | . . . . . . . . . . . . . . . . . . . . . . . . Part Schematics Acquired 15 | . . . . . . 2 . 1 . 4 . . 4 . . 3 . . . 1 . . . Parts Built 2 | . . . . . . . . . . 1 . . . . . 1 . . . . . . . Authchips . | . . . . . . . . . . . . . . . . . . . . . . . . Time 149 | . . . . . . . . . . 73 . . . . . 76 . . . . . . . Total Part Build Rating 8 | . . . . . . . . . . 3 . . . . . 5 . . . . . . . Part Studies Acquired 11 | . . . . . 2 . . . . 1 . . . . . 6 . . 2 . . . . Parts Repaired 8 | . . . . . 1 . . . . 1 . . . . 1 . 1 1 1 2 . . . Time 273 | . . . . . 38 . . . . 38 . . . . 36 . 35 35 35 56 . . . Parts Recycled . | . . . . . . . . . . . . . . . . . . . . . . . . Recycled Matter . | . . . . . . . . . . . . . . . . . . . . . . . . Retrieved Matter . | . . . . . . . . . . . . . . . . . . . . . . . . Retrieved Components 3 | . . . . . . . . . . 3 . . . . . . . . . . . . . Parts Scanalyzed 6 | . . . . . . . . . . 3 . . . . . 3 . . . . . . . Part Schematics Acquired 5 | . . . . . . . . . . 3 . . . . . 2 . . . . . . . Parts Damaged . | . . . . . . . . . . . . . . . . . . . . . . . . Bothacking | -11 -10 -10 -10 -9 -8 -7 -7 -7 -7 -5 -5 -5 -5 -4 -4 -3 -3 -2 -2 -2 -1 -1 -1 ------------ Run | Yrd Mat Min Exi Min Mat Fac Sto Rec Scr Fac Upp Upp Zhi Pro Fac Res Tes Res Qua Frg Acc Com Ac0 Used RIF Installer . | . . . . . . . . . . . . . . . . . . . . . . . . Robots Hacked . | . . . . . . . . . . . . . . . . . . . . . . . . Non-combat . | . . . . . . . . . . . . . . . . . . . . . . . . Combat . | . . . . . . . . . . . . . . . . . . . . . . . . Robot Hacks Applied . | . . . . . . . . . . . . . . . . . . . . . . . . Relay Couplers Released 2 | . . . . . . . . . . . . . . . . . . . . . 2 . . Machine Destruction 2 | . . . . . . . . . . . . . . . . . . . . . 2 . . Fabnet Peak Effective % . | . . . . . . . . . . . . . . . . . . . . . . . . Robots Rewired 9 | . . . . . . . . 9 . . . . . . . . . . . . . . . Allies Hacked . | . . . . . . . . . . . . . . . . . . . . . . . . Hacks Repelled . | . . . . . . . . . . . . . . . . . . . . . . . . Allies | -11 -10 -10 -10 -9 -8 -7 -7 -7 -7 -5 -5 -5 -5 -4 -4 -3 -3 -2 -2 -2 -1 -1 -1 -------- Run | Yrd Mat Min Exi Min Mat Fac Sto Rec Scr Fac Upp Upp Zhi Pro Fac Res Tes Res Qua Frg Acc Com Ac0 Total Allies 33 | . . . . 3 . 2 11 9 . 1 . . . . 1 1 1 . 1 2 1 . . Largest Group 10 | . . . . 3 3 1 10 8 . 1 . . . . 1 1 1 . 1 1 1 . . Highest-Rated Group 186 | . . . . 40 40 10 173 186 . 10 . . . . 26 26 45 . 26 45 45 . . Highest-Rated Ally 45 | . . . . 16 16 10 29 40 . 10 . . . . 26 26 45 . 26 45 45 . . Total Orders . | . . . . . . . . . . . . . . . . . . . . . . . . Ally Attacks 113 | . . . . . 19 . 86 8 . . . . . . . . . . . . . . . Total Damage 1576 | . . . . . 189 . 1082 305 . . . . . . . . . . . . . . . Kills 20 | . . . . . 4 . 11 5 . . . . . . . . . . . . . . . Allies Corrupted . | . . . . . . . . . . . . . . . . . . . . . . . . Allies Melted . | . . . . . . . . . . . . . . . . . . . . . . . . Intel | -11 -10 -10 -10 -9 -8 -7 -7 -7 -7 -5 -5 -5 -5 -4 -4 -3 -3 -2 -2 -2 -1 -1 -1 ------- Run | Yrd Mat Min Exi Min Mat Fac Sto Rec Scr Fac Upp Upp Zhi Pro Fac Res Tes Res Qua Frg Acc Com Ac0 Active Infowar (turns) 10091 | . . 329 805 197 281 500 675 460 476 844 559 411 53 130 489 1035 294 224 715 388 841 221 164 Sensors 8427 | . . . . . . 500 675 460 476 844 559 411 53 130 445 1035 294 224 710 388 838 221 164 Structural 3373 | . . . . . . 103 . . . . . . . . 483 1035 294 224 715 388 131 . . Seismic 1612 | . . 329 805 197 281 . . . . . . . . . . . . . . . . . . ECM 3432 | . . . . . . . . . . . . . . . . 918 294 224 657 388 783 168 . Robot Analysis Total 11 | . . . . . . 1 . . . 1 . . 4 . 1 . . 1 1 2 . . . Derelict Logs Recovered 7 | . . 1 . . . . . . . . 1 2 . 3 . . . . . . . . . Drone Launches . | . . . . . . . . . . . . . . . . . . . . . . . . Drone Recoveries . | . . . . . . . . . . . . . . . . . . . . . . . . Exploration | -11 -10 -10 -10 -9 -8 -7 -7 -7 -7 -5 -5 -5 -5 -4 -4 -3 -3 -2 -2 -2 -1 -1 -1 ------------- Run | Yrd Mat Min Exi Min Mat Fac Sto Rec Scr Fac Upp Upp Zhi Pro Fac Res Tes Res Qua Frg Acc Com Ac0 Turns Passed 16336 | 99 2633 777 805 197 2875 519 675 460 482 844 559 411 111 130 489 1035 294 224 715 388 854 512 248 Spaces Moved 20497 | 53 948 286 336 81 1133 1176 694 558 1383 1541 681 946 174 511 1333 1997 625 696 1312 865 1357 738 1073 Core 21 | 4 . . . . . . . 12 . . . . 1 . . . . . . . . . 4 Treads 2713 | 49 948 286 336 81 1013 . . . . . . . . . . . . . . . . . . Legs 120 | . . . . . 120 . . . . . . . . . . . . . . . . . . Wheels . | . . . . . . . . . . . . . . . . . . . . . . . . Hover . | . . . . . . . . . . . . . . . . . . . . . . . . Flight 17643 | . . . . . . 1176 694 546 1383 1541 681 946 173 511 1333 1997 625 696 1312 865 1357 738 1069 Fastest Speed 5 | 50 160 240 240 240 160 25 5 23 23 6 21 6 21 21 6 6 12 6 7 7 8 10 10 Average Speed 48 | 151 226 240 240 240 215 25 22 30 23 21 21 20 23 21 20 21 21 17 18 18 15 12 11 Slowest Speed 450 | 160 240 240 240 240 260 27 26 350 23 23 21 21 450 21 94 96 22 18 23 23 20 83 100 Overloaded Moves 575 | . . . . . . . 6 . . 65 . 28 . . 66 102 53 7 34 160 54 . . Propulsion Burnouts 1 | . . . . . . . . . . . . . . . . . 1 . . . . . . Robots Hopped 104 | . . . . . . 3 8 5 . 9 1 . . . 10 3 16 1 2 4 19 9 14 Potential Cave-ins . | . . . . . . . . . . . . . . . . . . . . . . . . Cave-ins Triggered 1 | . . . . . . . . . . . . . . . . . . . . . 1 . . Teleports 1 | . . . . . . . . . . . . . . . . . . . . . . 1 . Exploration Rate (%) 54 | 5 97 42 76 21 91 38 63 98 90 34 69 87 61 63 47 29 51 15 86 27 38 39 50 Regions Visited 23 Branch Regions 15 Pre-discovered Areas 21 | . 1 1 . . 4 1 3 3 . 2 . . 3 . . 3 . . . . . . . Known Exits Taken 19 | . . 1 . . 1 1 1 1 1 1 1 1 1 1 1 1 1 1 1 1 1 1 . Unknown Exits Taken 4 | 1 1 . 1 1 . . . . . . . . . . . . . . . . . . . Scrap Searched 15 | . . 1 . . . . . . 7 . 4 2 . 1 . . . . . . . . . Spaces Dug 219 | . . 26 . . . 29 6 1 . 47 18 . . . 23 6 6 3 12 16 24 2 . Terrain Destroyed 371 | . . 26 . . 28 29 6 1 . 95 18 . . . 23 6 6 3 12 16 24 78 . Melee 169 | . . . . . . 29 6 1 . 41 . . . . 23 6 6 3 12 16 24 2 . Projectile . | . . . . . . . . . . . . . . . . . . . . . . . . AOE 202 | . . 26 . . 28 . . . . 54 18 . . . . . . . . . . 76 . Terrain Rammed 1 | . . . . . . . . . . . . . . . . . . . . . . 1 . Walls Destroyed . | . . . . . . . . . . . . . . . . . . . . . . . . Machines Disabled . | . . . . . . . . . . . . . . . . . . . . . . . . Actions | -11 -10 -10 -10 -9 -8 -7 -7 -7 -7 -5 -5 -5 -5 -4 -4 -3 -3 -2 -2 -2 -1 -1 -1 --------- Run | Yrd Mat Min Exi Min Mat Fac Sto Rec Scr Fac Upp Upp Zhi Pro Fac Res Tes Res Qua Frg Acc Com Ac0 Total 26039 | 71 1277 341 337 85 1435 1347 1186 843 1548 1963 1081 1161 243 531 1491 2586 758 766 1742 1042 1904 1135 1166 Wait 4364 | . 175 31 . 5 87 65 446 221 144 327 392 213 48 20 112 556 117 45 367 153 469 322 49 Move 20274 | 52 947 285 335 80 1132 1169 679 548 1382 1522 678 945 173 510 1312 1990 592 693 1307 856 1320 720 1047 Hop 95 | . . . . . . 3 6 4 . 9 1 . . . 10 3 16 1 2 4 17 7 12 Pick Up 199 | 11 32 . 1 . 45 16 6 . 3 14 . . 3 . 6 8 4 3 10 4 9 8 16 Fast Attach 78 | . 1 1 . . 4 3 4 2 7 4 . . 8 . 6 1 . . 9 . 11 11 6 Attach 86 | 6 3 . . . 16 12 . . . 9 . . . . 1 5 1 3 6 2 3 6 13 Detach 8 | . 1 . . . . 2 . . . 2 . . . . . . . . . . . 2 1 Swap 117 | 2 5 2 . . 26 11 12 . 1 7 2 2 1 . 6 6 1 3 2 . 17 8 3 Drop 225 | . 19 1 1 . 38 29 19 2 11 12 . 1 10 . 9 7 2 1 15 . 20 21 7 Fire 202 | . 90 20 . . 86 . . . . 4 1 . . . . . . . . . . 1 . Melee 284 | . . . . . . 37 14 1 . 53 7 . . 1 29 10 8 17 24 23 38 10 12 Ram 1 | . . . . . . . . . . . . . . . . . . . . . . 1 . Kick . | . . . . . . . . . . . . . . . . . . . . . . . . Crush 6 | . 4 1 . . 1 . . . . . . . . . . . . . . . . . . Escape Stasis 35 | . . . . . . . . . . . . . . . . . 17 . . . . 18 . Rewire 65 | . . . . . . . . 65 . . . . . . . . . . . . . . . Trap . | . . . . . . . . . . . . . . . . . . . . . . . . Miscellaneous . | . . . . . . . . . . . . . . . . . . . . . . . . Route ------- -11/Scrapyard -10/Materials (discovered 5 exits: *Mat x3 / [*Min] / Sub) -10/Mines (discovered 2 exits: Mat / *Exi) -10/Exiles -9/Mines -8/Materials (discovered 3 exits: *Fac x3) -7/Factory (discovered 6 exits: *Fac x2 / *Sto x2 / *Low x2) -7/Storage (discovered 2 exits: Fac / *Rec) -7/Recycling (discovered 2 exits: *Fac / *Scr) -7/Scraptown (discovered 2 exits: *Fac x2) -5/Factory (discovered 8 exits: *Fac x4 / *Upp x2 / *Ext x2) -5/Upper Caves -5/Upper Caves (discovered 2 exits: *Fac / *Zhi) -5/Zhirov -4/Proximity Caves -4/Factory (discovered 6 exits: *Res x4 / *Upp x2) -3/Research (discovered 4 exits: Res x2 / *Tes x2) -3/Testing -2/Research (discovered 4 exits: Acc x2 / *Qua x2) -2/Quarantine (discovered 3 exits: *Acc / [*Sec] / *Frg) -2/Protoforge -1/Access (discovered 2 exits: Sur / *Com) -1/Command (discovered 3 exits: *Sur x2 / *Ac0) -1/Access_0 History --------- Turn | Location | Event 8 | -11/Scrapyard | Discovered new exit (range 14) 100 | -11/Scrapyard | Entered Materials 300 | -10/Materials | Build established: Mutant 617 | -10/Materials | Discovered new exit (range 16) 1471 | -10/Materials | Discovered new exit (range 8) 1536 | -10/Materials | Core integrity fell below 50% 1674 | -10/Materials | Discovered new exit (range 13) 2164 | -10/Materials | Discovered new exit (range 9) 2568 | -10/Materials | Learned 2 Storage zone layouts 2610 | -10/Materials | Loaded intel: 2 recycling unit locations 2643 | -10/Materials | Learned Materials stockpile data 2664 | -10/Materials | Loaded intel: 1 repair station location 2678 | -10/Materials | Identified exit to Subcaves 2729 | -10/Materials | Learned location of 2 exits from Mines 2733 | -10/Materials | Entered Mines 2734 | -10/Mines | Identified exit to Materials 2734 | -10/Mines | Identified exit to Exiles 2877 | -10/Mines | Learned location of Zion (-6) 3288 | -10/Mines | Deemed a non-threat by the Exiles lab entrance 3510 | -10/Mines | Entered Exiles 3578 | -10/Exiles | Met 8R-AWN 3611 | -10/Exiles | Met EX-HEX 3681 | -10/Exiles | Met EX-BIN 3837 | -10/Exiles | Met EX-DEC 3912 | -10/Exiles | Visited The Gauntlet 4281 | -10/Exiles | Discovered new exit (range 14) 4315 | -10/Exiles | Entered Mines 4368 | -9/Mines | Assisted by bots powering up and referring to "LRC-V3" 4489 | -9/Mines | Discovered new exit (range 8) 4512 | -9/Mines | Entered Materials 4512 | -8/Materials | Accompanied by 3 allies 4512 | -8/Materials | Evolved 4 slots: Propulsion x1, Utility x3 4694 | -8/Materials | Lost 3 allies 4797 | -8/Materials | Lost 4 parts (1p2n1w) 5153 | -8/Materials | Build established: Scavenger-Mutant 5199 | -8/Materials | Discovered new exit (range 9) 5237 | -8/Materials | Learned Factory trap positions 5255 | -8/Materials | Met 7R-MNS 5294 | -8/Materials | Learned Factory emergency access door positions 5340 | -8/Materials | Learned Factory stockpile data 5404 | -8/Materials | Learned location of 1 exit from Storage 5422 | -8/Materials | Learned 4 Recycling zone layouts 5448 | -8/Materials | Learned location of 1 exit from Extension 5485 | -8/Materials | Learned location of 2 exits from Factory 5554 | -8/Materials | Destroyed 8 combat bots 5699 | -8/Materials | Central database locked down 5954 | -8/Materials | Discovered new exit (range 10) 6094 | -8/Materials | Repaired Imp. Light Armor Plating 6308 | -8/Materials | Discovered new exit (range 16) 6398 | -8/Materials | Learned Factory stockpile data 6408 | -8/Materials | Learned Storage stockpile data 6422 | -8/Materials | Learned Storage stockpile data 6840 | -8/Materials | Identified exit to Factory 7387 | -8/Materials | Entered Factory 7387 | -7/Factory | Evolved 2 slots: Propulsion x2 7388 | -7/Factory | Caught up to 7R-MNS 7388 | -7/Factory | Identified exit to Storage 7389 | -7/Factory | Identified exit to Factory 7389 | -7/Factory | Identified exit to Lower Caves 7390 | -7/Factory | Loaded intel: 73 trap records 7666 | -7/Factory | Discovered exit to Factory (range 5) 7673 | -7/Factory | Build established: Scout 7809 | -7/Factory | Learned location of 2 exits from Proximity Caves 7875 | -7/Factory | Learned 4 Upper Caves zone layouts 7906 | -7/Factory | Entered Storage 7931 | -7/Storage | Assisted by bots powering up and referring to "LRC-V3" 8092 | -7/Storage | Used back door to open Recycling access 8092 | -7/Storage | Discovered new exit (range 5) 8092 | -7/Storage | Identified exit to Recycling 8206 | -7/Storage | Learned location of Warlord (-4) 8281 | -7/Storage | Learned location of Lower Caves (-6) 8348 | -7/Storage | Learned Hub_04(d) trap positions 8392 | -7/Storage | Build established: Hacker-Sprinter 8508 | -7/Storage | Learned location of 1 exit from Hub_04(d) 8573 | -7/Storage | Learned 4 Extension zone layouts 8581 | -7/Storage | Entered Recycling 8582 | -7/Recycling | Identified exit to Factory 8793 | -7/Recycling | Learned Extension emergency access door positions 8841 | -7/Recycling | Identified exit to Scraptown 8853 | -7/Recycling | Scanned before Scraplab entrance 8856 | -7/Recycling | Entered Scraplab 8878 | -7/Recycling | Learned 2 Upper Caves zone layouts 8905 | -7/Recycling | Learned location of 2 exits from Archives 8920 | -7/Recycling | Learned Extension emergency access door positions 8923 | -7/Recycling | Learned location of 1 exit from Extension 8934 | -7/Recycling | Learned 2 Lower Caves zone layouts 8955 | -7/Recycling | Learned location of 1 exit from Extension 8984 | -7/Recycling | Learned Factory machine intel 9022 | -7/Recycling | Learned location of 1 exit from Proximity Caves 9041 | -7/Recycling | Entered Scraptown 9110 | -7/Scraptown | Visited Red Mages 9118 | -7/Scraptown | Visited Bundlers 9183 | -7/Scraptown | Heard Great Nut preacher, LISTEN AND RECITE! 9188 | -7/Scraptown | Visited Cave Peace 9195 | -7/Scraptown | Visited SPCMW 9198 | -7/Scraptown | Visited Cyclists 9222 | -7/Scraptown | Visited Junk Repository 9234 | -7/Scraptown | Visited UFD Registry 9234 | -7/Scraptown | Registered with UFD as "Fiberframe" 9238 | -7/Scraptown | Entered Cyclist Reading Room 9254 | -7/Scraptown | Visited Junk Repository 9260 | -7/Scraptown | Visited Science Guys 9272 | -7/Scraptown | Visited Junk Cannon Lab 9277 | -7/Scraptown | Found Prototype Special Weapon 9277 | -7/Scraptown | Identified Junk Cannon 9345 | -7/Scraptown | Visited LU-1G1's Boring Crew 9354 | -7/Scraptown | Visited Infowarlord's Domain 9356 | -7/Scraptown | Found Exp. Sensor Array 9369 | -7/Scraptown | Visited Abandonware Association 9372 | -7/Scraptown | Learned abandonware demo "KABOOM.EXE" 9372 | -7/Scraptown | Learned abandonware demo "POISON.EXE" 9378 | -7/Scraptown | Visited Science Testing Area 9382 | -7/Scraptown | Visited Chapter 10 9470 | -7/Scraptown | Met Optimus 9470 | -7/Scraptown | Accepted into 0bPrime 9523 | -7/Scraptown | Entered Factory 9523 | -5/Factory | Evolved 4 slots: Propulsion x1, Utility x3 9524 | -5/Factory | Identified exit to Extension 9526 | -5/Factory | Loaded intel: 257 machine locations 9551 | -5/Factory | Loaded intel: 8 recycling unit locations 9607 | -5/Factory | Learned location of Protoforge (-2) 9821 | -5/Factory | Discovered new exit (range 6) 9822 | -5/Factory | Identified exit to Factory 9897 | -5/Factory | Discovered new exit (range 13) 9903 | -5/Factory | Central database locked down 9914 | -5/Factory | Identified exit to Upper Caves 10014 | -5/Factory | Fabricated Hacking Suite (x1) 10081 | -5/Factory | Learned 4 Extension zone layouts 10114 | -5/Factory | Repaired Katana 10142 | -5/Factory | Learned Research garrison access intel 10279 | -5/Factory | Learned 2 Extension zone layouts 10367 | -5/Factory | Entered Upper Caves 10368 | -5/Upper Caves | Identified exit to Upper Caves 10875 | -5/Upper Caves | Learned Factory stockpile data 10926 | -5/Upper Caves | Entered another Upper Caves area 10970 | -5/Upper Caves | Discovered exit to Factory (range 15) 10974 | -5/Upper Caves | Learned location of 1 exit from Factory 10995 | -5/Upper Caves | Spotted B-75 Beast 11278 | -5/Upper Caves | Learned Factory emergency access door positions 11309 | -5/Upper Caves | Discovered new exit (range 8) 11310 | -5/Upper Caves | Identified exit to Zhirov 11337 | -5/Upper Caves | Entered Zhirov 11337 | -5/Zhirov | Discovered new exit (range 3) 11338 | -5/Zhirov | Identified exit to Proximity Caves 11341 | -5/Zhirov | Met Zhirov 11346 | -5/Zhirov | Learned location of Quarantine (-2) 11346 | -5/Zhirov | Learned location of Testing (-3) 11346 | -5/Zhirov | Learned location of Command (-1) 11349 | -5/Zhirov | Zhirov requested help retrieving the SGEMP Prototype 11352 | -5/Zhirov | Found Alien Artifact 11352 | -5/Zhirov | Identified Integrated Dissipator 11352 | -5/Zhirov | Installed Integrated Dissipator, increased core heat dissipation (+20) 11433 | -5/Zhirov | Found Alien Artifact 11448 | -5/Zhirov | Entered Proximity Caves 11457 | -4/Proximity Caves | Learned 4 Research zone layouts 11470 | -4/Proximity Caves | Learned Research emergency access door positions 11538 | -4/Proximity Caves | Learned 8 Research zone layouts 11578 | -4/Proximity Caves | Entered Factory 11578 | -4/Factory | Evolved 2 slots: Power x1, Utility x1 11579 | -4/Factory | Identified exit to Upper Caves 11760 | -4/Factory | Loaded intel: 8 recycling unit locations 11781 | -4/Factory | Spotted B-86 Titan 11860 | -4/Factory | Discovered new exit (range 8) 11861 | -4/Factory | Identified exit to Research 11877 | -4/Factory | Build established: Hacker-Scout 11924 | -4/Factory | Discovered exit to Upper Caves (range 4) 12019 | -4/Factory | Repaired Exp. Sensor Array? 12060 | -4/Factory | Spotted B-86 Titan 12067 | -4/Factory | Entered Research 12067 | -3/Research | Evolved 2 slots: Utility x2 12070 | -3/Research | Loaded intel: 4 garrison access locations 12172 | -3/Research | Spotted B-86 Titan 12252 | -3/Research | Identified exit to Testing 12488 | -3/Research | Build established: Wizard-Ninja 12530 | -3/Research | Identified exit to Research 12584 | -3/Research | Learned location of 1 exit from Quarantine 12660 | -3/Research | Learned Quarantine garrison access intel 12683 | -3/Research | Learned Access trap positions 12686 | -3/Research | Unchained authorized (GL-D0S) 12761 | -3/Research | Learned 8 Research zone layouts 12805 | -3/Research | Fabricated Gravity Neutralizer? 12808 | -3/Research | Learned 8 Access zone layouts 13102 | -3/Research | Entered Testing 13131 | -3/Testing | Found Prototype Device 13135 | -3/Testing | Identified Exp. Shield Generator 13179 | -3/Testing | Repaired Cld. VTOL Module 13278 | -3/Testing | Protovariant out of control (PH-SXQGDLA7L5) 13278 | -3/Testing | Unleashed a protovariant (PH-SXQGDLA7L5) 13278 | -3/Testing | Protovariant out of control (PG-B5DEPWEPIF) 13278 | -3/Testing | Unleashed a protovariant (PG-B5DEPWEPIF) 13348 | -3/Testing | Spotted Investigator 13362 | -3/Testing | Scanned by Researcher 13396 | -3/Testing | Entered Research 13396 | -2/Research | Evolved 2 slots: Propulsion x1, Utility x1 13397 | -2/Research | Identified exit to Access 13439 | -2/Research | Repaired Cld. VTOL Module 13463 | -2/Research | Identified exit to Quarantine 13572 | -2/Research | Loaded intel: 5 recycling unit locations 13605 | -2/Research | Unchained authorized (GL-D0S) 13620 | -2/Research | Entered Quarantine 13622 | -2/Quarantine | Loaded intel: 1 garrison access location 13731 | -2/Quarantine | Found Alien Artifact 13731 | -2/Quarantine | Identified Terrabomb 13731 | -2/Quarantine | Used Terrabomb 13740 | -2/Quarantine | Found Terrabomb 13794 | -2/Quarantine | Cryocooling Duct disabled 13798 | -2/Quarantine | Cryocooling Duct disabled 13809 | -2/Quarantine | Ambient heat levels rising (+20) 13809 | -2/Quarantine | Non-combat units ordered to evacuate 13813 | -2/Quarantine | Ambient heat levels rising (+20) 13813 | -2/Quarantine | Combat units ordered to evacuate 13814 | -2/Quarantine | Found Prototype Device 13814 | -2/Quarantine | Identified Exp. Shock Absorption System 13837 | -2/Quarantine | Found Alien Artifact 13841 | -2/Quarantine | Identified Subatomic Replicator 13913 | -2/Quarantine | Quarantine Guard activated 13965 | -2/Quarantine | Spotted Quarantine Guard 14002 | -2/Quarantine | Spotted Quarantine Guard 14009 | -2/Quarantine | Repaired Cld. VTOL Module 14014 | -2/Quarantine | Spotted Quarantine Guard 14033 | -2/Quarantine | Spotted Quarantine Guard 14042 | -2/Quarantine | Spotted Quarantine Guard 14090 | -2/Quarantine | Spotted Quarantine Guard 14092 | -2/Quarantine | Found Alien Impact Weapon 14093 | -2/Quarantine | Identified Core Stripper 14094 | -2/Quarantine | Spotted Quarantine Guard 14106 | -2/Quarantine | Spotted Quarantine Guard 14157 | -2/Quarantine | Found Alien Slashing Weapon 14157 | -2/Quarantine | Identified Sigix Broadsword 14276 | -2/Quarantine | Found Alien Energy Cannon 14276 | -2/Quarantine | Identified Core Cannon 14302 | -2/Quarantine | Spotted Fortress 14330 | -2/Quarantine | Discovered new exit (range 6) 14330 | -2/Quarantine | Discovered new exit (range 5) 14335 | -2/Quarantine | Identified exit to Protoforge 14335 | -2/Quarantine | Entered Protoforge 14343 | -2/Protoforge | Superfortress began startup sequence 14368 | -2/Protoforge | Repaired Impulse Thruster+ 14406 | -2/Protoforge | Repaired Electron Diverter 14441 | -2/Protoforge | Spotted B-90 Cyclops 14482 | -2/Protoforge | Spotted Hotshot 14488 | -2/Protoforge | Spotted Hotshot 14561 | -2/Protoforge | Spotted Hotshot 14561 | -2/Protoforge | Spotted Hotshot 14662 | -2/Protoforge | Learned Research stockpile data 14687 | -2/Protoforge | Spotted Hotshot 14687 | -2/Protoforge | Spotted Hotshot 14723 | -2/Protoforge | Entered Access 14723 | -1/Access | Evolved 2 slots: Propulsion x1, Utility x1 14724 | -1/Access | Identified exit to Surface 14725 | -1/Access | Loaded intel: 81 trap records 14756 | -1/Access | Found Imp. Powered Armor 14794 | -1/Access | Identified exit to Command 14856 | -1/Access | Crushed by falling debris 14856 | -1/Access | System corruption reached 10% 14887 | -1/Access | Lost 3 parts (1n2u) 15106 | -1/Access | Spotted B-99 Colossus 15130 | -1/Access | Used Subatomic Replicator to replicate Exp. Q-thruster 15162 | -1/Access | Build established: Hacker-Sprinter 15168 | -1/Access | Spotted B-99 Colossus 15168 | -1/Access | Spotted B-99 Colossus 15221 | -1/Access | Spotted B-99 Colossus 15261 | -1/Access | Loaded intel: 4 recycling unit locations 15294 | -1/Access | Spotted B-99 Colossus 15411 | -1/Access | Unchained authorized (QV-33N) 15577 | -1/Access | Entered Command 15584 | -1/Command | Phase Generator disabled 15653 | -1/Command | Spotted M Guard 15653 | -1/Command | Spotted M Guard 15653 | -1/Command | Spotted Combat Programmer 15653 | -1/Command | Spotted Combat Programmer 15659 | -1/Command | Met MAIN.C 15664 | -1/Command | Used Terrabomb 15667 | -1/Command | 0b10 Conduit disabled 15668 | -1/Command | MAIN.C activated Command garrisons 15787 | -1/Command | Spotted B-99 Colossus 15789 | -1/Command | Found Prototype Device 15790 | -1/Command | Identified Exp. Focal Shield 15791 | -1/Command | Found Prototype Device 15791 | -1/Command | Identified Exp. ECM Suite 15793 | -1/Command | Found Prototype Device 15793 | -1/Command | Identified Exp. System Purifier 15796 | -1/Command | Found Prototype Device 15796 | -1/Command | Identified Exp. Hardlight Generator 15806 | -1/Command | Found Prototype Reactor 15806 | -1/Command | Identified Zero-point Reactor 15809 | -1/Command | Found Zero-point Reactor 15820 | -1/Command | Identified Transdimensional Reconstructor 15820 | -1/Command | Warped through subspace to slip node 15820 | -1/Command | Discovered new exit (range 4) 15824 | -1/Command | Identified exit to Access_0 16089 | -1/Command | Entered Access_0 16090 | -1/Access_0 | Met Architect 16124 | -1/Access_0 | Lost 3 parts (2n1u) 16149 | -1/Access_0 | Found Prototype Device 16157 | -1/Access_0 | Identified Exp. EM Shield 16161 | -1/Access_0 | Found Prototype Device 16178 | -1/Access_0 | Found Tactical Quantum Warhead 16185 | -1/Access_0 | Identified Exp. Thermal Shield 16186 | -1/Access_0 | Found Tactical Quantum Warhead 16191 | -1/Access_0 | A6 warped into view 16220 | -1/Access_0 | A5 warped into view 16221 | -1/Access_0 | Singularity Gate disabled 16239 | -1/Access_0 | Core integrity fell below 50% 16255 | -1/Access_0 | Found Alien Artifact 16266 | -1/Access_0 | Lost 10 parts (2p3n5u) 16322 | -1/Access_0 | Found Prototype Device 16325 | -1/Access_0 | Identified Integrity Redistributor 16325 | -1/Access_0 | Used Integrity Redistributor, redistributed integrity to core (+120) 16332 | -1/Access_0 | Identified Thermal Barrier 16336 | -1/Access_0 | Core integrity fell below 20% 16337 | -1/Access_0 | Destroyed by Enhanced Hunter with Hypervelocity Linear Accelerator Last Messages --------------- 16333_ Penetrated by HV Slug. 16334_ Penetrated by Quantum Shear. 16334_ A6 follow-up attacks with Enh. Force Lance. 16334_ HV Slug penetrates Reinforced Shell. 16334_ Penetrated by HV Slug. 16334_ Exp. System Purifier destroyed. 16335_ Penetrated by HV Slug. 16335_ HV Slug penetrates Wall. 16335_ Penetrated by HV Slug. 16335_ HV Slug penetrates Earth. 16335_ Acquired 2 matter. 16335_ Penetrated by HV Slug. 16335_ HV Slug penetrates Wall. 16335_ Imp. Diametric Drive destroyed. 16336_ Penetrated by HV Slug. 16337_ Penetrated by Quantum Shear. 16337_ Thermal Barrier destroyed. 16337_ Quantum Shear penetrates A6. 16337_ Penetrated by HV Slug. Map ----- +----------------------------------------------------+ | ?????????????????????????????????????????????????? | | ?????????????????????????????????????????????????? | | ?????????????????????????????????????????????????? | | ?????????????????????????????????????????????????? | | ?????????????????????????????????????????????????? | | ?????????????????????????????????????????????????? | | ?????????????????????????????????????????????????? | | ?????????????????????????????????????????????????? | | ?????????????????????????????????????????????????? | | ?????????????????????????????????????????????????? | | ?????????????????????????????????????????????????? | | ?????????????????????????????????????????????????? | | ?????????????????????????????????????????????????? | | ?????????????????????????????????????????????????? | | ?????????????????????????????????????????????????? | | ?????????????????????????????????????????????????? | | ?????????????????????????????????????????????????? | | ?????????????????????????????????????????????????? | | ??????????????????????###????????????????????????? | | ??????????????????##??# ##???????????????????????? | | ??????????????????# ### #???????????????????????? | | ??????????????????# ;;##???????????????????????? | | ???????????????#####%;; ###?????????????????????? | | ??????????????#"="; % % ;########??????????????? | | ??????????????" /""" p #??????????????? | | ??????????????" g] % @ #??????????????? | | ??????????????"[=p!0p ##;#### #??????????????? | | ??????????????""!"p"gg #??????????????????????? | | ???????????????""";% g ##??????????????????????? | | ?????????????????# gh ##???????????????????????? | | ?????????????????# h ##????????????????????????? | | ????????????????## h"####?????????????????????? | | ??????????????### ??????????????? | | ??????????????# ## ??????????????? | | ??????????????### ## ######## ??????????????? | | ????????????????## ## #??????????????????????????? | | ?????????????????# ## #??????????????????????????? | | ?????????????????# ## #??????????????????????????? | | ?????????????????# #??????????????????????????? | | ?????????????????# ###??????????????????????????? | | ?????????????????# #????????????????????????????? | | ?????????????????# #????????????????????????????? | | ????????????????## #????????????????????????????? | | ??????????????### ##???????????????????????????? | | ??????????????# #????????? ??????????????? | | ??????????????## #???????# ??????????????? | | ?????????????## ##???????" """"??????????? | | ?????????????# #?????"""" """"??????????? | | ?????????????# #?????" "??????????? | | ?????????????# #????"" ""?????????? | +----------------------------------------------------+ Best States ------------- Heat Dissipation 72 Coolant Potential 65 Energy Generation 65 Energy Capacity 465 Matter Stores 300 Matter Capacity 300 Sight Range 16 Robot Scan Range 20 Terrain Scan Density 10 ECM Strength 1 Power Amplification 40 Additional Mass Support 25 Armor Coverage 600 Resistance: KI 30 Power Shielding 33 Evasion (%) 78 Recoil Reduction 7 Matter Filtering 50 Offensive Hacking 50 Defensive Hacking 25 Item Schematics ----------------- Hacking Suite | -7/Factory | Hacked System Shield | -7/Factory | Hacked Imp. Component Analysis Suite | -7/Recycling | Hacked Imp. Sensor Array | -5/Factory | Scanalyzed Structural Scanner | -5/Factory | Scanalyzed Rocket Launcher | -5/Factory | Scanalyzed Gamma Bomb Array | -5/Factory | Hacked Assault Drone Bay | -5/Zhirov | Free Exp. Heat Sink | -5/Zhirov | Free Exp. Optical Array | -5/Zhirov | Free Imp. Arc Thrower | -5/Zhirov | Free Lyr. Light Armor Plating | -3/Research | Scanalyzed Lrn. Sensor Array | -3/Research | Scanalyzed Gravity Neutralizer | -3/Research | Hacked Cld. Q-thruster | -2/Protoforge | Hacked Robot Schematics ------------------ None Fabricated ------------ Hacking Suite | x1 | -5/Factory Gravity Neutralizer | x1 | -3/Research Repaired ---------- Imp. Light Armor Plating | 36% | -8/Materials Katana | 52% | -5/Factory Exp. Sensor Array | 13% | -4/Factory Cld. VTOL Module | 21% | -3/Testing Cld. VTOL Module | 6% | -2/Research Cld. VTOL Module | 36% | -2/Quarantine Impulse Thruster | 5% | -2/Protoforge Electron Diverter | 47% | -2/Protoforge Studied --------- Flight Unit | -8/Materials | Hacked Rocket Launcher | -8/Materials | Hacked Lgt. Deuterium Engine | -5/Factory | Hacked Field Propulsion Drive | -3/Research | Hacked Mic. Fission Core | -3/Research | Hacked Lgt. Fission Core | -3/Research | Hacked Katana | -3/Research | Hacked Q-thruster | -3/Research | Hacked Mic. Antimatter Reactor | -3/Research | Hacked Impulse Thruster | -2/Quarantine | Hacked Lgt. Quantum Reactor | -2/Quarantine | Hacked Alien Tech Used ----------------- Integrated Dissipator Terrabomb Core Stripper Sigix Broadsword Core Cannon Subatomic Replicator Transdimensional Reconstructor Integrity Redistributor Achievements -------------- Super-what Now? Challenges ------------ None Game ------ Seed RingTiamatMatterbank Manual? 0 Play Time 04:47:52 Cumulative 164.3 hours Start 2025.10.25 @ 12:25:20 End 2025.10.25 @ 17:23:24 Sessions 1 Manual Loads 0 Difficulty Rogue Special Mode None Game No. 111 Rogue 111 Adventurer 0 Explorer 0 Win Type - Total 6 Types 4/0/1/1/0/0/0/0/0/0 Lore% 79 Gallery% 72 Achievement% 52 Wizard Run 0 Options --------- Layout 1 ASCII 0 Keyboard 0 Movement Mouse Keybinds 0 Fullscreen 2 Font 24/Smallcaps Map View 50x35 Zoom Use 0% Tactical HUD 1 Map Filters NONE Filters NONE Steam 1 RUN: 17a63abc-0cdb-4cbd-b61a-7ee9698c94aa